fUST/lending_fUST_20250628
["ID","MTS","AMOUNT","RATE_DAILY","PERIOD"]
[368267325,1751082645426,-460.0,0.00019452,2]
[368267327,1751082645436,-460.0,0.00019452,2]
[368267329,1751082645445,-460.0,0.00019452,2]
[368267331,1751082645455,-460.0,0.00019452,2]
[368267333,1751082645464,-460.0,0.00019452,2]
[368267335,1751082645474,-1339.36,0.00019452,2]
[368267337,1751082645483,-460.0,0.00019452,2]
[368267339,1751082645491,-460.0,0.00019452,2]
[368267341,1751082645501,-2563.64,0.00019452,2]
[368267343,1751082645510,-460.0,0.00019452,2]
[368267345,1751082645519,-460.0,0.00019452,2]
[368267347,1751082645529,-460.0,0.00019452,2]
[368267349,1751082645539,-502.74371204,0.00019452,2]
[368267351,1751082645548,-506.77,0.00019452,2]
[368267354,1751082645558,-174.79744718,0.00019452,2]
[368267356,1751082645567,-460.0,0.00019452,2]
[368267358,1751082645577,-460.0,0.00019452,2]
[368267360,1751082645586,-6392.51,0.00019452,2]
[368267362,1751082645595,-460.0,0.00019452,2]
[368267364,1751082645604,-460.0,0.00019452,2]
[368267366,1751082645614,-460.0,0.00019452,2]
[368267368,1751082645622,-830.81,0.00019452,2]
[368267370,1751082645632,-500.0,0.00019452,2]
[368267372,1751082645641,-1033.84,0.00019452,2]
[368267374,1751082645650,-473.01,0.00019452,2]
[368267376,1751082645660,-460.0,0.00019452,2]
[368267378,1751082645669,-460.0,0.00019452,2]
[368267380,1751082645678,-460.0,0.00019452,2]
[368267383,1751082645696,-460.0,0.00019452,2]
[368267385,1751082645707,-703.69,0.00019452,2]
[368267387,1751082645717,-460.0,0.00019452,2]
[368267389,1751082645727,-506.5934905,0.00019452,2]
[368267391,1751082645736,-1518.6,0.00019452,2]
[368267393,1751082645746,-460.0,0.00019452,2]
[368267395,1751082645755,-460.0,0.00019452,2]
[368267397,1751082645765,-460.0,0.00019452,2]
[368267399,1751082645775,-460.0,0.00019452,2]
[368267401,1751082645785,-460.0,0.00019452,2]
[368267404,1751082645795,-153.0634595,0.00019452,2]
[368267406,1751082645804,-2416.47,0.00019452,2]
[368267408,1751082645815,-1148.69,0.00019452,2]
[368267410,1751082645824,-710.18,0.00019452,2]
[368267412,1751082645834,-460.0,0.00019452,2]
[368267414,1751082645843,-2083.37,0.00019452,2]
[368267416,1751082645853,-460.0,0.00019452,2]
[368267418,1751082645863,-460.0,0.00019452,2]
[368267420,1751082645872,-460.0,0.00019452,2]
[368267421,1751082645882,-460.0,0.00019452,2]
[368267423,1751082645892,-506.58884029,0.00019452,2]
[368267426,1751082645901,-464.44589036,0.00019452,2]
[368267428,1751082645911,-460.0,0.00019452,2]
[368267430,1751082645921,-460.0,0.00019452,2]
[368267432,1751082645931,-460.0,0.00019452,2]
[368267433,1751082645940,-151.0,0.00019507,2]
[368267435,1751082645950,-323.57981548,0.00019511,2]
[368267438,1751082645959,-500.97448561,0.00019511,2]
[368267440,1751082645970,-2122.57,0.00019527,2]
[368267442,1751082645979,-509.68531918,0.0001953,2]
[368267444,1751082645989,-500.0,0.0001953,2]
[368267446,1751082645999,-264.30474659,0.0001953,2]
[368267448,1751082646008,-501.47527516,0.0001953,2]
[368267450,1751082646018,-500.0,0.0001953,2]
[368267452,1751082646028,-500.0,0.0001953,2]
[368267454,1751082646038,-500.0,0.0001953,2]
[368267456,1751082646047,-500.0,0.00019542,2]
[368267458,1751082646057,-501.29730348,0.00019543,2]
[368267460,1751082646067,-500.56844036,0.00019543,2]
[368267463,1751082646077,-500.0,0.00019547,2]
[368267466,1751082646086,-3078.66809803,0.00019626,2]
[368267469,1751082646095,-413.41765957,0.0001967,2]
[368267472,1751082646105,-162.23139,0.00019679,4]
[368267476,1751082646115,-2122.57,0.00019725,2]
[368267478,1751082646125,-2122.57,0.00019725,2]
[368267480,1751082646135,-2122.57,0.00019725,2]
[368267482,1751082646145,-460.0,0.00019726,2]
[368267484,1751082646155,-460.0,0.00019726,2]
[368267486,1751082646164,-501.32595158,0.00019726,2]
[368267488,1751082646176,-340.38342881,0.00019726,2]
[368267490,1751082646185,-460.0,0.00019726,2]
[368267492,1751082646195,-460.0,0.00019726,2]
[368267494,1751082646204,-460.0,0.00019726,2]
[368267496,1751082646213,-406.38651822,0.00019726,2]
[368267498,1751082646224,-460.0,0.00019726,2]
[368267500,1751082646233,-179.49,0.00019726,2]
[368267502,1751082646243,-460.0,0.00019726,2]
[368267504,1751082646252,-460.0,0.00019726,2]
[368267506,1751082646262,-500.0,0.00019726,2]
[368267508,1751082646271,-460.0,0.00019726,2]
[368267511,1751082646281,-460.0,0.00019726,2]
[368267513,1751082646290,-460.0,0.00019726,2]
[368267515,1751082646299,-500.0,0.00019726,2]
[368267517,1751082646309,-460.0,0.00019726,2]
[368267519,1751082646318,-460.0,0.00019726,2]
[368267520,1751082646330,-460.0,0.00019726,2]
[368267523,1751082646340,-343.55,0.00019726,2]
[368267524,1751082646349,-171.96786637,0.00019726,2]
[368267526,1751082646359,-460.0,0.00019726,2]
[368267528,1751082646370,-563.59,0.00019726,2]
[368267530,1751082646379,-460.0,0.00019726,2]
[368267531,1751082646389,-460.0,0.00019726,2]
[368267532,1751082646398,-460.0,0.00019726,2]
[368267533,1751082646409,-291.23006975,0.00019726,2]
[368267534,1751082646419,-460.0,0.00019726,2]
[368267535,1751082646428,-460.0,0.00019726,2]
[368267536,1751082646438,-460.0,0.00019726,2]
[368267537,1751082646447,-460.0,0.00019726,2]
[368267538,1751082646456,-460.0,0.00019726,2]
[368267539,1751082646465,-460.0,0.00019726,2]
[368267540,1751082646474,-382.79535336,0.00019726,2]
[368267541,1751082646483,-460.0,0.00019726,2]
[368267542,1751082646493,-460.0,0.00019726,2]
[368267543,1751082646503,-460.0,0.00019726,2]
[368267544,1751082646513,-460.0,0.00019726,2]
[368267545,1751082646523,-460.0,0.00019726,2]
[368267547,1751082646532,-460.0,0.00019726,2]
[368267548,1751082646542,-460.0,0.00019726,2]
[368267550,1751082646552,-460.0,0.00019726,2]
[368267552,1751082646561,-460.0,0.00019726,2]
[368267554,1751082646570,-460.0,0.00019726,2]
[368267556,1751082646579,-809.06,0.00019726,2]
[368267558,1751082646589,-460.0,0.00019726,2]
[368267560,1751082646598,-460.0,0.00019726,2]
[368267562,1751082646608,-460.0,0.00019726,2]
[368267564,1751082646618,-420.65354902,0.00019726,2]
[368267566,1751082646628,-460.0,0.00019726,2]
[368267568,1751082646639,-460.0,0.00019726,2]
[368267570,1751082646648,-2585.43,0.00019726,2]
[368267572,1751082646657,-1197.58,0.00019726,2]
[368267574,1751082646667,-460.0,0.00019726,2]
[368267576,1751082646676,-460.0,0.00019726,2]
[368267578,1751082646685,-3401.94,0.00019726,2]
[368267580,1751082646695,-286.15,0.00019726,2]
[368267582,1751082646704,-460.0,0.00019726,2]
[368267584,1751082646714,-460.0,0.00019726,2]
[368267587,1751082646723,-554.57,0.00019726,2]
[368267589,1751082646733,-694.58,0.00019726,2]
[368267590,1751082646742,-460.0,0.00019726,2]
[368267592,1751082646752,-460.0,0.00019726,2]
[368267594,1751082646761,-2915.06,0.00019726,2]
[368267596,1751082646770,-460.0,0.00019726,2]
[368267599,1751082646781,-501.85265272,0.00019726,2]
[368267601,1751082646790,-460.0,0.00019726,2]
[368267603,1751082646800,-892.72,0.00019726,2]
[368267605,1751082646809,-460.0,0.00019726,2]
[368267607,1751082646819,-169.22317659,0.00019726,2]
[368267609,1751082646828,-168.09361166,0.00019726,2]
[368267611,1751082646838,-500.0,0.00019726,2]
[368267612,1751082646847,-875.61,0.00019726,2]
[368267614,1751082646857,-460.0,0.00019726,2]
[368267616,1751082646866,-488.9,0.00019726,2]
[368267619,1751082646876,-460.0,0.00019726,2]
[368267620,1751082646886,-460.0,0.00019726,2]
[368267623,1751082646895,-460.0,0.00019726,2]
[368267624,1751082646904,-460.0,0.00019726,2]
[368267626,1751082646913,-2592.81,0.00019726,2]
[368267628,1751082646923,-460.0,0.00019726,2]
[368267631,1751082646933,-460.0,0.00019726,2]
[368267633,1751082646943,-476.53,0.00019726,2]
[368267635,1751082646952,-151.8405361,0.00019726,2]
[368267636,1751082646962,-590.08,0.00019726,2]
[368267638,1751082646971,-460.0,0.00019726,2]
[368267640,1751082646981,-460.0,0.00019726,2]
[368267642,1751082646990,-505.73,0.00019726,2]
[368267644,1751082647000,-460.0,0.00019726,2]
[368267646,1751082647010,-460.0,0.00019726,2]
[368267648,1751082647019,-460.0,0.00019726,2]
[368267650,1751082647029,-485.43,0.00019726,2]
[368267652,1751082647039,-460.0,0.00019726,2]
[368267654,1751082647048,-1281.57,0.00019726,2]
[368267656,1751082647057,-580.14,0.00019726,2]
[368267658,1751082647067,-3204.57,0.00019726,2]
[368267660,1751082647077,-460.0,0.00019726,2]
[368267662,1751082647087,-2702.71,0.00019726,2]
[368267664,1751082647096,-460.0,0.00019726,2]
[368267666,1751082647106,-513.54,0.00019726,2]
[368267668,1751082647115,-460.0,0.00019726,2]
[368267670,1751082647125,-514.04,0.00019726,2]
[368267673,1751082647135,-1359.25,0.00019726,2]
[368267674,1751082647145,-460.0,0.00019726,2]
[368267676,1751082647154,-3562.53,0.00019726,2]
[368267678,1751082647164,-460.0,0.00019726,2]
[368267680,1751082647174,-587.54,0.00019726,2]
[368267682,1751082647184,-460.0,0.00019726,2]
[368267684,1751082647193,-460.0,0.00019726,2]
[368267686,1751082647203,-3090.88,0.00019726,2]
[368267688,1751082647212,-460.0,0.00019726,2]
[368267690,1751082647221,-499.06,0.00019726,2]
[368267692,1751082647231,-460.0,0.00019726,2]
[368267695,1751082647241,-460.0,0.00019726,2]
[368267697,1751082647250,-567.47,0.00019726,2]
[368267699,1751082647260,-472.1,0.00019726,2]
[368267701,1751082647271,-2318.94,0.00019726,2]
[368267703,1751082647280,-460.0,0.00019726,2]
[368267705,1751082647289,-460.0,0.00019726,2]
[368267706,1751082647298,-5723.84,0.00019726,2]
[368267708,1751082647307,-460.0,0.00019726,2]
[368267710,1751082647316,-460.0,0.00019726,2]
[368267712,1751082647327,-460.0,0.00019726,2]
[368267714,1751082647338,-553.34,0.00019726,2]
[368267716,1751082647347,-460.0,0.00019726,2]
[368267718,1751082647357,-1398.9,0.00019726,2]
[368267720,1751082647366,-460.0,0.00019726,2]
[368267722,1751082647375,-1026.49,0.00019726,2]
[368267724,1751082647385,-188.62060722,0.00019726,2]
[368267726,1751082647394,-460.0,0.00019726,2]
[368267728,1751082647403,-460.0,0.00019726,2]
[368267730,1751082647412,-238.05,0.00019726,2]
[368267732,1751082647421,-460.0,0.00019726,2]
[368267734,1751082647431,-460.0,0.00019726,2]
[368267736,1751082647440,-460.0,0.00019726,2]
[368267738,1751082647449,-460.0,0.00019726,2]
[368267740,1751082647459,-1339.36,0.00019726,2]
[368267743,1751082647468,-460.0,0.00019726,2]
[368267745,1751082647477,-460.0,0.00019726,2]
[368267746,1751082647487,-2563.64,0.00019726,2]
[368267748,1751082647496,-460.0,0.00019726,2]
[368267750,1751082647505,-162.19690601,0.00019726,2]
[368267752,1751082647514,-460.0,0.00019726,2]
[368267754,1751082647524,-506.77,0.00019726,2]
[368267756,1751082647533,-243.89987363,0.00019726,2]
[368267758,1751082647542,-460.0,0.00019726,2]
[368267761,1751082647551,-6392.51,0.00019726,2]
[368267763,1751082647561,-460.0,0.00019726,2]
[368267765,1751082647570,-460.0,0.00019726,2]
[368267767,1751082647579,-830.81,0.00019726,2]
[368267769,1751082647588,-1033.84,0.00019726,2]
[368267771,1751082647597,-473.01,0.00019726,2]
[368267772,1751082647606,-460.0,0.00019726,2]
[368267774,1751082647615,-460.0,0.00019726,2]
[368267777,1751082647625,-541.28,0.00019726,2]
[368267779,1751082647635,-460.0,0.00019726,2]
[368267796,1751082647784,-703.69,0.00019726,2]
[368267798,1751082647794,-460.0,0.00019726,2]
[368267800,1751082647803,-1518.6,0.00019726,2]
[368267802,1751082647812,-460.0,0.00019726,2]
[368267804,1751082647821,-460.0,0.00019726,2]
[368267806,1751082647830,-486.208897,0.00019726,2]
[368267808,1751082647840,-460.0,0.00019726,2]
[368267810,1751082647849,-460.0,0.00019726,2]
[368267812,1751082647858,-2416.47,0.00019726,2]
[368267814,1751082647867,-1148.69,0.00019726,2]
[368267816,1751082647877,-710.18,0.00019726,2]
[368267818,1751082647886,-456.62885268,0.00019726,2]
[368267820,1751082647895,-2083.37,0.00019726,2]
[368267822,1751082647905,-460.0,0.00019726,2]
[368267824,1751082647914,-460.0,0.00019726,2]
[368267826,1751082647924,-460.0,0.00019726,2]
[368267828,1751082647933,-460.0,0.00019726,2]
[368267830,1751082647942,-460.0,0.00019726,2]
[368267832,1751082647951,-245.42726476,0.00019726,2]
[368267834,1751082647961,-2122.57,0.00019899,2]
[368267836,1751082647970,-2122.57,0.00019899,2]
[368267838,1751082647979,-2122.57,0.00019899,2]
[368267840,1751082647989,-2122.57,0.00019899,2]
[368267842,1751082647998,-2122.66383629,0.00019899,2]
[368267843,1751082648006,-10539.0160525,0.000199,2]
[368267846,1751082648016,-168.0,0.0001996,2]
[368267848,1751082648026,-420.0,0.0001996,2]
[368267850,1751082648036,-1680.0,0.00019962,2]
[368267851,1751082648046,-460.0,0.0002,2]
[368267854,1751082648056,-154.934733,0.0002,2]
[368267856,1751082648065,-154.934733,0.0002,2]
[368267858,1751082648074,-460.0,0.0002,2]
[368267860,1751082648084,-460.0,0.0002,2]
[368267861,1751082648093,-487.1086644,0.0002,2]
[368267864,1751082648102,-460.0,0.0002,2]
[368267865,1751082648111,-460.0,0.0002,2]
[368267867,1751082648121,-474.41,0.0002,2]
[368267870,1751082648131,-460.0,0.0002,2]
[368267872,1751082648141,-300.0,0.0002,2]
[368267873,1751082648151,-460.0,0.0002,2]
[368267875,1751082648161,-460.0,0.0002,2]
[368267877,1751082648170,-368.85962986,0.0002,2]
[368267879,1751082648181,-460.0,0.0002,2]
[368267881,1751082648190,-563.59,0.0002,2]
[368267883,1751082648200,-460.0,0.0002,2]
[368267885,1751082648209,-460.0,0.0002,2]
[368267887,1751082648219,-207.15453225,0.0002,2]
[368267889,1751082648229,-460.0,0.0002,2]
[368267892,1751082648238,-460.0,0.0002,2]
[368267893,1751082648248,-478.99,0.0002,2]
[368267896,1751082648258,-280.82,0.0002,2]
[368267898,1751082648267,-460.0,0.0002,2]
[368267899,1751082648276,-460.0,0.0002,2]
[368267901,1751082648286,-196.29499146,0.0002,2]
[368267903,1751082648295,-342.54926142,0.0002,2]
[368267906,1751082648305,-460.0,0.0002,2]
[368267907,1751082648314,-551.86494749,0.0002,2]
[368267910,1751082648324,-476.0372211,0.0002,2]
[368267912,1751082648339,-460.0,0.0002,2]
[368267914,1751082648349,-460.0,0.0002,2]
[368267916,1751082648359,-460.0,0.0002,2]
[368267917,1751082648369,-460.0,0.0002,2]
[368267920,1751082648381,-460.0,0.0002,2]
[368267921,1751082648390,-809.06,0.0002,2]
[368267923,1751082648400,-460.0,0.0002,2]
[368267926,1751082648410,-471.98705521,0.0002,2]
[368267928,1751082648421,-460.0,0.0002,2]
[368267930,1751082648430,-2585.43,0.0002,2]
[368267931,1751082648439,-460.0,0.0002,2]
[368267933,1751082648449,-1197.58,0.0002,2]
[368267936,1751082648459,-500.0,0.0002,2]
[368267937,1751082648469,-3401.94,0.0002,2]
[368267940,1751082648478,-460.0,0.0002,2]
[368267941,1751082648487,-554.57,0.0002,2]
[368267943,1751082648496,-694.58,0.0002,2]
[368267945,1751082648505,-460.0,0.0002,2]
[368267947,1751082648514,-460.0,0.0002,2]
[368267950,1751082648525,-2915.06,0.0002,2]
[368267951,1751082648533,-460.0,0.0002,2]
[368267953,1751082648543,-460.0,0.0002,2]
[368267955,1751082648551,-892.72,0.0002,2]
[368267957,1751082648560,-460.0,0.0002,2]
[368267959,1751082648570,-875.61,0.0002,2]
[368267961,1751082648579,-287.06,0.0002,2]
[368267963,1751082648588,-488.9,0.0002,2]
[368267965,1751082648598,-460.0,0.0002,2]
[368267967,1751082648607,-460.0,0.0002,2]
[368267969,1751082648616,-460.0,0.0002,2]
[368267971,1751082648627,-460.0,0.0002,2]
[368267972,1751082648636,-2592.81,0.0002,2]
[368267973,1751082648645,-460.0,0.0002,2]
[368267974,1751082648654,-583.96932528,0.0002,2]
[368267975,1751082648663,-476.53,0.0002,2]
[368267976,1751082648673,-590.08,0.0002,2]
[368267977,1751082648682,-460.0,0.0002,2]
[368267978,1751082648691,-460.0,0.0002,2]
[368267979,1751082648701,-505.73,0.0002,2]
[368267980,1751082648711,-259.00043933,0.0002,2]
[368267981,1751082648720,-460.0,0.0002,2]
[368267982,1751082648729,-460.0,0.0002,2]
[368267983,1751082648739,-460.0,0.0002,2]
[368267984,1751082648748,-485.43,0.0002,2]
[368267986,1751082648758,-1281.57,0.0002,2]
[368267988,1751082648767,-3204.57,0.0002,2]
[368267990,1751082648777,-2702.71,0.0002,2]
[368267992,1751082648787,-460.0,0.0002,2]
[368267995,1751082648796,-513.54,0.0002,2]
[368267997,1751082648806,-460.0,0.0002,2]
[368267998,1751082648815,-514.04,0.0002,2]
[368268000,1751082648824,-1359.25,0.0002,2]
[368268002,1751082648833,-460.0,0.0002,2]
[368268004,1751082648842,-3562.53,0.0002,2]
[368268006,1751082648851,-460.0,0.0002,2]
[368268008,1751082648861,-587.54,0.0002,2]
[368268010,1751082648870,-460.0,0.0002,2]
[368268012,1751082648880,-460.0,0.0002,2]
[368268014,1751082648889,-3090.88,0.0002,2]
[368268016,1751082648898,-460.0,0.0002,2]
[368268018,1751082648908,-499.06,0.0002,2]
[368268020,1751082648917,-460.0,0.0002,2]
[368268022,1751082648927,-460.0,0.0002,2]
[368268025,1751082648936,-567.47,0.0002,2]
[368268026,1751082648947,-472.1,0.0002,2]
[368268029,1751082648957,-2318.94,0.0002,2]
[368268031,1751082648967,-460.0,0.0002,2]
[368268032,1751082648976,-460.0,0.0002,2]
[368268034,1751082648986,-5723.84,0.0002,2]
[368268037,1751082648998,-460.0,0.0002,2]
[368268039,1751082649008,-460.0,0.0002,2]
[368268040,1751082649017,-460.0,0.0002,2]
[368268042,1751082649027,-553.34,0.0002,2]
[368268044,1751082649037,-460.0,0.0002,2]
[368268047,1751082649047,-1398.9,0.0002,2]
[368268048,1751082649057,-462.07673129,0.0002,2]
[368268050,1751082649067,-1026.49,0.0002,2]
[368268052,1751082649076,-460.0,0.0002,2]
[368268054,1751082649086,-460.0,0.0002,2]
[368268057,1751082649096,-460.0,0.0002,2]
[368268058,1751082649106,-460.0,0.0002,2]
[368268060,1751082649117,-460.0,0.0002,2]
[368268062,1751082649127,-460.0,0.0002,2]
[368268064,1751082649137,-1339.36,0.0002,2]
[368268066,1751082649147,-460.0,0.0002,2]
[368268068,1751082649156,-2563.64,0.0002,2]
[368268070,1751082649166,-506.10308369,0.0002,2]
[368268072,1751082649175,-460.0,0.0002,2]
[368268074,1751082649185,-506.77,0.0002,2]
[368268076,1751082649194,-460.0,0.0002,2]
[368268078,1751082649203,-6392.51,0.0002,2]
[368268080,1751082649213,-460.0,0.0002,2]
[368268082,1751082649223,-460.0,0.0002,2]
[368268084,1751082649232,-830.81,0.0002,2]
[368268086,1751082649239,-1033.84,0.0002,2]
[368268088,1751082649246,-473.01,0.0002,2]
[368268090,1751082649256,-460.0,0.0002,2]
[368268092,1751082649265,-460.0,0.0002,2]
[368268094,1751082649273,-703.69,0.0002,2]
[368268096,1751082649282,-460.0,0.0002,2]
[368268098,1751082649291,-1518.6,0.0002,2]
[368268100,1751082649300,-460.0,0.0002,2]
[368268102,1751082649309,-460.0,0.0002,2]
[368268104,1751082649317,-460.0,0.0002,2]
[368268105,1751082649327,-162.54,0.0002,2]
[368268108,1751082649339,-460.0,0.0002,2]
[368268110,1751082649348,-2416.47,0.0002,2]
[368268112,1751082649358,-710.18,0.0002,2]
[368268114,1751082649367,-1148.69,0.0002,2]
[368268115,1751082649376,-2083.37,0.0002,2]
[368268117,1751082649386,-460.0,0.0002,2]
[368268120,1751082649395,-460.0,0.0002,2]
[368268122,1751082649404,-460.0,0.0002,2]
[368268124,1751082649413,-460.0,0.0002,2]
[368268126,1751082649424,-460.0,0.0002,2]
[368268128,1751082649434,-300.0,0.0002001,2]
[368268130,1751082649443,-431.40476906,0.0002002,2]
[368268132,1751082649452,-1680.0,0.00020058,2]
[368268134,1751082649461,-501.169435,0.00020078,2]
[368268136,1751082649470,-512.10269403,0.00020078,2]
[368268138,1751082649479,-443.30882593,0.0002009,2]
[368268140,1751082649489,-160.0,0.00020094,2]
[368268142,1751082649498,-12564.78152626,0.00020094,2]
[368268144,1751082649507,-230.28494567,0.00020094,2]
[368268146,1751082649516,-213.78848551,0.00020094,2]
[368268148,1751082649525,-837.06984471,0.00020094,2]
[368268150,1751082649534,-847.18566335,0.00020094,2]
[368268152,1751082649544,-160.0,0.00020094,2]
[368268154,1751082649553,-160.0,0.00020094,2]
[368268156,1751082649562,-160.0,0.00020094,2]
[368268158,1751082649571,-214.95397287,0.00020094,2]
[368268160,1751082649580,-160.0,0.00020094,2]
[368268161,1751082649590,-160.0,0.00020094,2]
[368268163,1751082649601,-160.0,0.00020094,2]
[368268165,1751082649613,-160.0,0.00020094,2]
[368268168,1751082649623,-1000.0,0.00020095,2]
[368268169,1751082649632,-160.0,0.00020098,2]
[368268172,1751082649642,-168.0,0.00020108,2]
[368268173,1751082649651,-10539.0160523,0.00020141,2]
[368268175,1751082649660,-3078.66809803,0.00020174,2]
[368268177,1751082649669,-336.828118,0.00020187,2]
[368268180,1751082649679,-162.23139,0.00020251,2]
[368268182,1751082649689,-162.23139,0.00020263,4]
[368268184,1751082649698,-460.0,0.00020273,2]
[368268186,1751082649707,-460.0,0.00020273,2]
[368268188,1751082649716,-460.0,0.00020273,2]
[368268190,1751082649725,-460.0,0.00020273,2]
[368268192,1751082649734,-460.0,0.00020273,2]
[368268194,1751082649743,-460.0,0.00020273,2]
[368268196,1751082649754,-460.0,0.00020273,2]
[368268198,1751082649763,-563.59,0.00020273,2]
[368268199,1751082649772,-460.0,0.00020273,2]
[368268202,1751082649781,-460.0,0.00020273,2]
[368268204,1751082649791,-460.0,0.00020273,2]
[368268205,1751082649800,-460.0,0.00020273,2]
[368268208,1751082649809,-460.0,0.00020273,2]
[368268210,1751082649819,-460.0,0.00020273,2]
[368268212,1751082649828,-460.0,0.00020273,2]
[368268214,1751082649838,-481.09073413,0.00020273,2]
[368268216,1751082649847,-460.0,0.00020273,2]
[368268218,1751082649856,-460.0,0.00020273,2]
[368268220,1751082649865,-460.0,0.00020273,2]
[368268222,1751082649875,-460.0,0.00020273,2]
[368268224,1751082649883,-809.06,0.00020273,2]
[368268226,1751082649893,-460.0,0.00020273,2]
[368268228,1751082649902,-2585.43,0.00020273,2]
[368268230,1751082649912,-460.0,0.00020273,2]
[368268232,1751082649923,-1197.58,0.00020273,2]
[368268234,1751082649932,-3401.94,0.00020273,2]
[368268236,1751082649942,-460.0,0.00020273,2]
[368268238,1751082649951,-554.57,0.00020273,2]
[368268240,1751082649960,-694.58,0.00020273,2]
[368268242,1751082649969,-500.0,0.00020273,2]
[368268244,1751082649978,-500.0,0.00020273,2]
[368268246,1751082649988,-2915.06,0.00020273,2]
[368268248,1751082649997,-460.0,0.00020273,2]
[368268250,1751082650006,-460.0,0.00020273,2]
[368268252,1751082650016,-892.72,0.00020273,2]
[368268254,1751082650025,-460.0,0.00020273,2]
[368268256,1751082650034,-875.61,0.00020273,2]
[368268258,1751082650044,-488.9,0.00020273,2]
[368268259,1751082650053,-460.0,0.00020273,2]
[368268261,1751082650062,-460.0,0.00020273,2]
[368268263,1751082650071,-460.0,0.00020273,2]
[368268266,1751082650081,-460.0,0.00020273,2]
[368268268,1751082650090,-2592.81,0.00020273,2]
[368268270,1751082650099,-460.0,0.00020273,2]
[368268272,1751082650108,-476.53,0.00020273,2]
[368268273,1751082650117,-590.08,0.00020273,2]
[368268276,1751082650127,-460.0,0.00020273,2]
[368268277,1751082650137,-460.0,0.00020273,2]
[368268279,1751082650146,-505.73,0.00020273,2]
[368268281,1751082650155,-460.0,0.00020273,2]
[368268283,1751082650165,-460.0,0.00020273,2]
[368268285,1751082650174,-485.43,0.00020273,2]
[368268287,1751082650183,-1281.57,0.00020273,2]
[368268289,1751082650193,-3204.57,0.00020273,2]
[368268291,1751082650202,-2702.71,0.00020273,2]
[368268293,1751082650211,-460.0,0.00020273,2]
[368268295,1751082650220,-513.54,0.00020273,2]
[368268297,1751082650229,-460.0,0.00020273,2]
[368268299,1751082650238,-151.0,0.00020273,2]
[368268301,1751082650247,-514.04,0.00020273,2]
[368268303,1751082650256,-1359.25,0.00020273,2]
[368268305,1751082650265,-460.0,0.00020273,2]
[368268307,1751082650275,-3562.53,0.00020273,2]
[368268309,1751082650283,-460.0,0.00020273,2]
[368268311,1751082650292,-587.54,0.00020273,2]
[368268324,1751082650408,-460.0,0.00020273,2]
[368268326,1751082650418,-460.0,0.00020273,2]
[368268328,1751082650427,-3090.88,0.00020273,2]